[Event "XIV American Continental-ch 2019"]
[Site "Sao Paulo"]
[Date "2019.07.09"]
[Round "7.17"]
[White "Cubas, Jose Fernando"]
[Black "Uribe Arteaga, Daniel"]
[Result "1/2-1/2"]
[ECO "B06"]
[WhiteElo "2493"]
[BlackElo "2304"]
[Annotator "ChessBase"]
[PlyCount "81"]
[EventDate "2019.07.05"]
[EventType "swiss"]
[EventCountry "BRA"]
[SourceTitle "playchess.com"]
[Source "ChessBase"]
[SourceQuality "1"]
[TimeControl "40/5400+30:1800+30"]

1. e4 {[%emt 0:00:00]} g6 {[%emt 0:01:26]} 2. d4 {[%emt 0:00:11]} Bg7 {[%emt 0:00:25]} 3. Nc3 {[%emt 0:00:19]} c6 {[%emt 0:00:07]} 4. f4 {[%emt 0:07:57]} d5 {[%emt 0:00:07]} 5. e5 {[%emt 0:00:01]} Nh6 {[%emt 0:00:07]} 6. Nf3 {[%emt 0:00:24]} f6 {[%emt 0:00:21]} 7. Bd3 {[%emt 0:04:57]} Bg4 {[%emt 0:01:05]} 8. Be3 {[%emt 0:15:24]} O-O {[%emt 0:00:35]} 9. O-O {[%emt 0:03:13]} e6 {[%emt 0:03:22]} 10. Qd2 {[%emt 0:08:47]} Bxf3 {[%emt 0:02:48]} 11. Rxf3 {[%emt 0:00:07]} c5 {[%emt 0:12:21]} 12. f5 {[%emt 0:22:05]} cxd4 {[%emt 0:13:38]} 13. Bxh6 {[%emt 0:01:52]} dxc3 {[%emt 0:00:26]} 14. bxc3 {[%emt 0:00:24]} exf5 {[%emt 0:03:02]} 15. Rh3 {[%emt 0:08:05]} Bxh6 {[%emt 0:01:26]} 16. Qxh6 {[%emt 0:00:06]} Rf7 {[%emt 0:04:55]} 17. exf6 {[%emt 0:02:01]} Qxf6 {[%emt 0:02:52]} 18. Re1 {[%emt 0:00:59]} Nc6 {[%emt 0:03:35]} 19. Rhe3 {[%emt 0:00:03]} Re7 {[%emt 0:02:16]} 20. Rxe7 {[%emt 0:01:17]} Nxe7 {[%emt 0:00:11]} 21. c4 {[%emt 0:00:45]} Rc8 {[%emt 0:14:07]} 22. Qe3 {[%emt 0:04:57]} dxc4 {[%emt 0:01:14]} 23. Qxe7 {[%emt 0:02:48]} Qxe7 {[%emt 0:00:02]} 24. Rxe7 {[%emt 0:00:07]} cxd3 {[%emt 0:00:08]} 25. cxd3 {[%emt 0:00:02]} Rc1+ {[%emt 0:00:06]} 26. Kf2 {[%emt 0:00:02]} Rc2+ {[%emt 0:00:06]} 27. Kf3 {[%emt 0:00:03]} Rd2 {[%emt 0:00:23]} 28. Rxb7 {[%emt 0:06:44]} Rxd3+ {[%emt 0:00:25]} 29. Kf4 {[%emt 0:00:01]} Rd2 {[%emt 0:06:04]} 30. Rxa7 {[%emt 0:00:59]} Rxg2 {[%emt 0:00:07]} 31. Ke5 {[%emt 0:04:13]} Kf8 {[%emt 0:04:18]} 32. Kf6 {[%emt 0:02:30]} Ke8 {[%emt 0:00:12]} 33. Re7+ {[%emt 0:00:45]} Kd8 {[%emt 0:00:14]} 34. Rxh7 {[%emt 0:00:38]} f4 {[%emt 0:00:29]} 35. Ke5 {[%emt 0:01:00]} g5 {[%emt 0:02:13]} 36. Ke4 {[%emt 0:03:04]} Rxa2 {[%emt 0:02:36]} 37. Rg7 {[%emt 0:00:28]} Rg2 {[%emt 0:03:11]} 38. Kf3 {[%emt 0:00:20]} Rg1 {[%emt 0:00:27]} 39. Kf2 {[%emt 0:00:27]} Rg4 {[%emt 0:00:27]} 40. Kf3 {[%emt 0:00:05]} Rg1 {[%emt 0:00:15]} 41. Kf2 {[%emt 0:30:10]} 1/2-1/2

[Event "XIV American Continental-ch 2019"]
[Site "Sao Paulo"]
[Date "2019.07.10"]
[Round "7.18"]
[White "Hambleton, Aman"]
[Black "Donoso Diaz, Sebastian"]
[Result "1-0"]
[ECO "A33"]
[WhiteElo "2487"]
[BlackElo "2239"]
[Annotator "ChessBase"]
[PlyCount "79"]
[EventDate "2019.07.05"]
[EventType "swiss"]
[EventCountry "BRA"]
[SourceTitle "playchess.com"]
[Source "ChessBase"]
[SourceQuality "1"]
[TimeControl "40/5400+30:1800+30"]

1. c4 {[%emt 0:03:22]} c5 {[%emt 0:00:42]} 2. Nf3 {[%emt 0:00:25]} Nc6 {[%emt 0:00:43]} 3. Nc3 {[%emt 0:00:43]} Nf6 {[%emt 0:00:25]} 4. d4 {[%emt 0:02:04]} cxd4 {[%emt 0:00:15]} 5. Nxd4 {[%emt 0:00:04]} e6 {[%emt 0:00:15]} 6. g3 {[%emt 0:04:16]} Bc5 {[%emt 0:11:26]} 7. Nb3 {[%emt 0:00:14]} Be7 {[%emt 0:01:24]} 8. Bg2 {[%emt 0:01:16]} O-O {[%emt 0:03:08]} 9. O-O {[%emt 0:00:23]} d6 {[%emt 0:01:11]} 10. Bf4 {[%emt 0:03:25]} h6 {[%emt 0:03:58]} 11. Rc1 {[%emt 0:01:37]} g5 {[%emt 0:24:50]} 12. Bd2 {[%emt 0:10:09]} Ne5 {[%emt 0:06:34]} 13. Nb5 {[%emt 0:19:02]} Ng6 {[%emt 0:11:26]} 14. Bb4 {[%emt 0:09:26]} Ne8 {[%emt 0:02:57]} 15. c5 {[%emt 0:02:45]} d5 {[%emt 0:01:56]} 16. e4 {[%emt 0:00:08]} a5 {[%emt 0:03:14]} 17. Ba3 {[%emt 0:02:38]} Bd7 {[%emt 0:04:01]} 18. Nd6 {[%emt 0:03:35]} Bxd6 {[%emt 0:06:43]} 19. cxd6 {[%emt 0:01:44]} b5 {[%emt 0:00:11]} 20. Bc5 {[%emt 0:05:23]} Ra6 {[%emt 0:00:23]} 21. exd5 {[%emt 0:06:14]} e5 {[%emt 0:00:15]} 22. Be3 {[%emt 0:06:25]} Nxd6 {[%emt 0:01:23]} 23. Nc5 {[%emt 0:00:08]} Ra8 {[%emt 0:00:11]} 24. Nxd7 {[%emt 0:00:45]} Qxd7 {[%emt 0:00:06]} 25. Rc6 {[%emt 0:00:07]} Rfc8 {[%emt 0:03:42]} 26. Qh5 {[%emt 0:01:26]} Kg7 {[%emt 0:01:48]} 27. Bh3 {[%emt 0:01:29]} f5 {[%emt 0:00:37]} 28. Bxf5 {[%emt 0:00:58]} Qxf5 {[%emt 0:00:07]} 29. Rxd6 {[%emt 0:00:05]} Rd8 {[%emt 0:01:20]} 30. Rb6 {[%emt 0:07:38]} Rxd5 {[%emt 0:02:00]} 31. Rc1 {[%emt 0:00:32]} Rad8 {[%emt 0:01:52]} 32. Rcc6 {[%emt 0:01:15]} Rd1+ {[%emt 0:00:40]} 33. Kg2 {[%emt 0:00:07]} Qe4+ {[%emt 0:00:07]} 34. Kh3 {[%emt 0:01:02]} Qf5+ {[%emt 0:02:47]} 35. Qg4 {[%emt 0:00:11]} Ne7 {[%emt 0:00:35]} 36. Rxh6 {[%emt 0:01:28]} Qxg4+ {[%emt 0:01:00]} 37. Kxg4 {[%emt 0:00:10]} Nd5 {[%emt 0:00:19]} 38. Rbg6+ {[%emt 0:01:24]} Kf7 {[%emt 0:00:15]} 39. Kxg5 {[%emt 0:01:20]} Ne7 {[%emt 0:01:29]} 40. Rh7+ 1-0

[Event "XIV American Continental-ch 2019"]
[Site "Sao Paulo"]
[Date "2019.07.09"]
[Round "7.19"]
[White "Jodorcovsky Werjivker, Paulo"]
[Black "Roselli Mailhe, Bernardo"]
[Result "0-1"]
[ECO "E76"]
[WhiteElo "2228"]
[BlackElo "2471"]
[Annotator "ChessBase"]
[PlyCount "62"]
[EventDate "2019.07.05"]
[EventType "swiss"]
[EventCountry "BRA"]
[SourceTitle "playchess.com"]
[Source "ChessBase"]
[SourceQuality "1"]
[TimeControl "40/5400+30:1800+30"]

1. d4 {[%emt 0:00:00]} Nf6 {[%emt 0:01:25]} 2. c4 {[%emt 0:00:13]} g6 {[%emt 0:00:30]} 3. Nc3 {[%emt 0:00:30]} Bg7 {[%emt 0:00:30]} 4. e4 {[%emt 0:00:00]} d6 {[%emt 0:00:00]} 5. f4 {[%emt 0:00:00]} O-O {[%emt 0:00:00]} 6. Nf3 {[%emt 0:00:05]} Na6 {[%emt 0:00:00]} 7. Bd3 {[%emt 0:00:51]} Bg4 {[%emt 0:00:06]} 8. Be3 {[%emt 0:02:04]} Nd7 {[%emt 0:07:26]} 9. O-O {[%emt 0:04:33]} e5 {[%emt 0:00:50]} 10. dxe5 {[%emt 0:04:49]} dxe5 {[%emt 0:01:18]} 11. f5 {[%emt 0:00:43]} Nb4 {[%emt 0:07:25]} 12. h3 {[%emt 0:05:29]} Bxf3 {[%emt 0:01:03]} 13. Rxf3 {[%emt 0:00:11]} Nc6 {[%emt 0:02:13]} 14. Rf2 {[%emt 0:09:10]} Nd4 {[%emt 0:01:28]} 15. Qf1 {[%emt 0:02:35]} c6 {[%emt 0:02:07]} 16. Rd1 {[%emt 0:03:22]} Qh4 {[%emt 0:05:51]} 17. Rfd2 {[%emt 0:37:27]} Bh6 {[%emt 0:12:00]} 18. Bxh6 {[%emt 0:00:19]} Qxh6 {[%emt 0:00:05]} 19. Qf2 {[%emt 0:00:28]} Qg5 {[%emt 0:10:16]} 20. Ne2 {[%emt 0:05:44]} c5 {[%emt 0:02:30]} 21. Nc3 {[%emt 0:01:54]} Nb6 {[%emt 0:06:56]} 22. Kh1 {[%emt 0:01:53]} Rad8 {[%emt 0:01:48]} 23. b3 {[%emt 0:04:40]} Rd6 {[%emt 0:01:20]} 24. Bb1 {[%emt 0:04:01]} Nd7 {[%emt 0:03:17]} 25. Nd5 {[%emt 0:01:35]} Nf6 {[%emt 0:00:40]} 26. Qe3 {[%emt 0:06:39]} Qxe3 {[%emt 0:01:52]} 27. Nxe3 {[%emt 0:00:05]} Rfd8 {[%emt 0:00:14]} 28. fxg6 {[%emt 0:01:12]} hxg6 {[%emt 0:00:41]} 29. g3 {[%emt 0:01:09]} R8d7 {[%emt 0:03:17]} 30. Kg2 {[%emt 0:00:25]} Nf5 {[%emt 0:01:30]} 31. Nd5 {[%emt 0:01:09]} Nxd5 0-1

[Event "XIV American Continental-ch 2019"]
[Site "Sao Paulo"]
[Date "2019.07.09"]
[Round "7.20"]
[White "Albuquerque Junior, Wellington S."]
[Black "Perdomo, Leandro"]
[Result "0-1"]
[ECO "A26"]
[WhiteElo "2204"]
[BlackElo "2468"]
[Annotator "ChessBase"]
[PlyCount "80"]
[EventDate "2019.07.05"]
[EventType "swiss"]
[EventCountry "BRA"]
[SourceTitle "playchess.com"]
[Source "ChessBase"]
[SourceQuality "1"]
[TimeControl "40/5400+30:1800+30"]

1. c4 {[%emt 0:00:39]} g6 {[%emt 0:00:00]} 2. g3 {[%emt 0:00:18]} Bg7 {[%emt 0:00:00]} 3. Bg2 {[%emt 0:00:17]} e5 {[%emt 0:00:00]} 4. Nc3 {[%emt 0:00:26]} Nc6 {[%emt 0:00:02]} 5. d3 {[%emt 0:01:07]} d6 {[%emt 0:00:11]} 6. e4 {[%emt 0:00:36]} Be6 {[%emt 0:00:52]} 7. Nge2 {[%emt 0:00:23]} Qd7 {[%emt 0:00:19]} 8. Nd5 {[%emt 0:00:59]} Nce7 {[%emt 0:00:17]} 9. h4 {[%emt 0:03:47]} c6 {[%emt 0:17:08]} 10. Nxe7 {[%emt 0:01:14]} Nxe7 {[%emt 0:00:03]} 11. Be3 {[%emt 0:05:26]} f5 {[%emt 0:28:23]} 12. Qa4 {[%emt 0:23:50]} O-O {[%emt 0:03:42]} 13. d4 {[%emt 0:06:57]} fxe4 {[%emt 0:12:05]} 14. Bxe4 {[%emt 0:01:43]} b5 {[%emt 0:06:24]} 15. cxb5 cxb5 16. Qd1 {[%emt 0:05:11]} Bd5 {[%emt 0:06:38]} 17. Bxd5+ {[%emt 0:04:05]} Nxd5 {[%emt 0:00:02]} 18. Qb3 {[%emt 0:00:16]} Qf7 {[%emt 0:00:03]} 19. O-O {[%emt 0:02:42]} Nxe3 {[%emt 0:00:32]} 20. Qxe3 {[%emt 0:16:20]} Rae8 {[%emt 0:00:12]} 21. dxe5 {[%emt 0:01:58]} Rxe5 {[%emt 0:05:09]} 22. Qd2 {[%emt 0:01:17]} Rfe8 {[%emt 0:04:57]} 23. Nc3 {[%emt 0:02:42]} b4 {[%emt 0:03:53]} 24. Nd1 {[%emt 0:00:17]} Qb7 {[%emt 0:05:10]} 25. Qxd6 {[%emt 0:08:20]} Rd5 {[%emt 0:00:03]} 26. Qf4 {[%emt 0:00:21]} Rd4 {[%emt 0:00:02]} 27. Qc1 {[%emt 0:01:28]} Qf3 {[%emt 0:01:49]} 28. Qc5 {[%emt 0:02:29]} Rxh4 {[%emt 0:01:31]} 29. gxh4 {[%emt 0:00:32]} Qg4+ {[%emt 0:00:02]} 30. Kh1 {[%emt 0:00:45]} Qxh4+ {[%emt 0:00:02]} 31. Kg2 {[%emt 0:02:07]} Qg4+ {[%emt 0:00:05]} 32. Kh1 {[%emt 0:00:24]} Re5 {[%emt 0:00:12]} 33. Qxe5 {[%emt 0:02:54]} Bxe5 {[%emt 0:00:02]} 34. Re1 {[%emt 0:00:24]} Qh3+ {[%emt 0:01:06]} 35. Kg1 {[%emt 0:00:08]} Bh2+ {[%emt 0:00:07]} 36. Kh1 {[%emt 0:00:11]} Bf4+ {[%emt 0:00:03]} 37. Kg1 {[%emt 0:00:12]} h5 {[%emt 0:00:34]} 38. a3 {[%emt 0:01:53]} b3 {[%emt 0:00:05]} 39. Re3 {[%emt 0:00:58]} Qh2+ {[%emt 0:00:27]} 40. Kf1 {[%emt 0:00:09]} Bxe3 {[%emt 0:00:08]} 0-1

[Event "XIV American Continental-ch 2019"]
[Site "Sao Paulo"]
[Date "2019.07.09"]
[Round "7.21"]
[White "Escalante Ramirez, Brian Sebasti"]
[Black "Pereira, Silvio Cunha"]
[Result "1-0"]
[ECO "C45"]
[WhiteElo "2447"]
[BlackElo "2220"]
[Annotator "NA"]
[PlyCount "35"]
[EventDate "2019.07.05"]
[EventType "swiss"]
[EventCountry "BRA"]
[SourceTitle "playchess.com"]
[Source "ChessBase"]
[SourceQuality "1"]
[TimeControl "40/5400+30:1800+30"]

1. e4 {[%emt 0:00:00]} e5 {[%emt 0:01:45]} 2. Nf3 {[%emt 0:00:00]} Nc6 {[%emt 0:00:10]} 3. d4 {[%emt 0:00:00]} exd4 {[%emt 0:00:04]} 4. Nxd4 {[%emt 0:00:00]} Bc5 {[%emt 0:00:18]} 5. Nb3 {[%emt 0:00:00]} Bb6 {[%emt 0:00:09]} 6. Nc3 {[%emt 0:00:00]} d6 {[%emt 0:01:14]} 7. Qe2 {[%emt 0:00:30]} Qh4 {[%emt 0:04:35]} 8. g3 {[%emt 0:01:55]} Qg4 {[%emt 0:00:15]} 9. f3 {[%emt 0:00:37]} Qh5 {[%emt 0:00:24]} 10. Be3 {[%emt 0:01:52]} Ne5 {[%emt 0:00:59]} 11. Bg2 {[%emt 0:05:44]} Be6 {[%emt 0:01:13]} 12. O-O-O {[%emt 0:02:46]} Bc4 {[%emt 0:01:47]} 13. Qf2 {[%emt 0:00:41]} Nf6 {[%emt 0:01:10]} 14. Nd4 {[%emt 0:04:41]} Be6 {[%emt 0:03:18]} 15. g4 {[%emt 0:13:39]} Qg6 {[%emt 0:07:20]} 16. Bf1 {[%emt 0:00:08]} Nxf3 {[%emt 0:03:02]} 17. Nxe6 {[%emt 0:02:40]} Nxg4 {[%emt 0:01:05]} 18. Nxc7+ {[%emt 0:00:08]} 1-0

[Event "XIV American Continental-ch 2019"]
[Site "Sao Paulo"]
[Date "2019.07.10"]
[Round "7.22"]
[White "Garcia Cardenas, Pablo"]
[Black "Guimaraes, Wagner Peixoto"]
[Result "1-0"]
[ECO "E71"]
[WhiteElo "2443"]
[BlackElo "2206"]
[Annotator "NA RC"]
[PlyCount "75"]
[EventDate "2019.07.05"]
[EventType "swiss"]
[EventCountry "BRA"]
[SourceTitle "playchess.com"]
[Source "ChessBase"]
[SourceQuality "1"]
[TimeControl "40/5400+30:1800+30"]

1. d4 {[%emt 0:01:41]} Nf6 {[%emt 0:00:21]} 2. c4 {[%emt 0:00:05]} g6 {[%emt 0:00:43]} 3. Nc3 {[%emt 0:00:05]} Bg7 {[%emt 0:00:37]} 4. e4 {[%emt 0:00:07]} d6 {[%emt 0:00:10]} 5. h3 {[%emt 0:00:04]} O-O {[%emt 0:00:30]} 6. Be3 {[%emt 0:00:09]} Na6 {[%emt 0:02:25]} 7. g4 {[%emt 0:03:09]} c5 {[%emt 0:03:03]} 8. Nge2 {[%emt 0:09:37]} cxd4 {[%emt 0:03:26]} 9. Nxd4 {[%emt 0:02:56]} Nc5 {[%emt 0:06:26]} 10. Bg2 {[%emt 0:05:18]} a5 {[%emt 0:12:25]} 11. b3 {[%emt 0:08:07]} Bd7 {[%emt 0:06:09]} 12. O-O {[%emt 0:03:25]} Rc8 {[%emt 0:02:39]} 13. Rc1 {[%emt 0:05:15]} h5 {[%emt 0:05:33]} 14. g5 {[%emt 0:02:21]} Nh7 {[%emt 0:00:09]} 15. h4 {[%emt 0:09:43]} a4 {[%emt 0:06:38]} 16. b4 {[%emt 0:08:42]} Na6 {[%emt 0:00:37]} 17. b5 {[%emt 0:00:08]} Nc5 {[%emt 0:01:05]} 18. Nxa4 {[%emt 0:00:15]} Nxa4 {[%emt 0:02:41]} 19. Qxa4 {[%emt 0:00:17]} Ra8 {[%emt 0:01:56]} 20. Qb3 {[%emt 0:02:31]} Qa5 {[%emt 0:04:21]} 21. Rc2 {[%emt 0:01:02]} Rfc8 {[%emt 0:03:35]} 22. Qd3 {[%emt 0:02:05]} Nf8 {[%emt 0:02:12]} 23. f4 {[%emt 0:02:18]} Qb4 {[%emt 0:00:43]} 24. Nb3 {[%emt 0:06:16]} Ra3 {[%emt 0:10:14]} 25. f5 {[%emt 0:09:10]} Be5 {[%emt 0:01:41]} 26. Bd4 {[%emt 0:03:04]} Bxd4+ {[%emt 0:02:36]} 27. Qxd4 {[%emt 0:00:05]} Rca8 {[%emt 0:03:39]} 28. Qf2 {[%emt 0:02:09]} Be8 {[%emt 0:03:36]} 29. e5 {[%emt 0:01:12]} dxe5 {[%emt 0:01:56]} 30. Bxb7 {[%emt 0:00:36]} Rd8 {[%emt 0:01:48]} 31. Bc6 {[%emt 0:02:31]} Rxb3 {[%emt 0:08:35]} 32. axb3 {[%emt 0:03:50]} Bxc6 {[%emt 0:01:22]} 33. fxg6 {[%emt 0:02:12]} Bd5 34. cxd5 {[%emt 0:00:13]} Qg4+ {[%emt 0:02:26]} 35. Kh2 {[%emt 0:00:14]} Nxg6 {[%emt 0:00:14]} 36. Qxf7+ {[%emt 0:00:08]} Kh8 {[%emt 0:00:05]} 37. Qxg6 {[%emt 0:00:39]} Qxh4+ {[%emt 0:00:12]} 38. Kg1 1-0

[Event "XIV American Continental-ch 2019"]
[Site "Sao Paulo"]
[Date "2019.07.10"]
[Round "7.23"]
[White "Sanchez Alvarez, Roberto Carlos"]
[Black "Alboredo, Julia"]
[Result "1/2-1/2"]
[ECO "E81"]
[WhiteElo "2434"]
[BlackElo "2175"]
[Annotator "NA"]
[PlyCount "77"]
[EventDate "2019.07.05"]
[EventType "swiss"]
[EventCountry "BRA"]
[SourceTitle "playchess.com"]
[Source "ChessBase"]
[SourceQuality "1"]
[TimeControl "40/5400+30:1800+30"]

1. d4 {[%emt 0:00:00]} Nf6 {[%emt 0:00:00]} 2. c4 {[%emt 0:00:12]} g6 {[%emt 0:00:07]} 3. Nc3 {[%emt 0:00:41]} Bg7 {[%emt 0:00:24]} 4. e4 {[%emt 0:00:11]} d6 {[%emt 0:00:10]} 5. f3 {[%emt 0:01:24]} O-O {[%emt 0:00:23]} 6. Nge2 {[%emt 0:00:05]} c5 {[%emt 0:01:46]} 7. d5 {[%emt 0:00:20]} e6 {[%emt 0:04:45]} 8. Ng3 {[%emt 0:00:12]} exd5 {[%emt 0:01:05]} 9. cxd5 {[%emt 0:00:29]} a6 {[%emt 0:02:01]} 10. a4 {[%emt 0:00:12]} h5 {[%emt 0:03:35]} 11. Be2 {[%emt 0:02:41]} Nbd7 {[%emt 0:13:31]} 12. Bg5 {[%emt 0:01:45]} Qc7 {[%emt 0:06:01]} 13. Qd2 {[%emt 0:02:49]} Rb8 {[%emt 0:06:27]} 14. O-O {[%emt 0:28:51]} c4 {[%emt 0:09:44]} 15. Rac1 {[%emt 0:01:33]} b5 {[%emt 0:03:03]} 16. axb5 {[%emt 0:00:08]} axb5 {[%emt 0:00:07]} 17. b4 {[%emt 0:00:06]} Re8 {[%emt 0:06:16]} 18. Ra1 {[%emt 0:14:26]} Nh7 {[%emt 0:11:40]} 19. Be3 {[%emt 0:00:42]} h4 {[%emt 0:00:32]} 20. Nh1 {[%emt 0:00:07]} Ne5 {[%emt 0:02:38]} 21. Ra7 {[%emt 0:05:04]} Qd8 {[%emt 0:00:39]} 22. f4 {[%emt 0:06:06]} Ng4 {[%emt 0:03:47]} 23. Bxg4 {[%emt 0:00:15]} Bxg4 {[%emt 0:00:07]} 24. Nf2 {[%emt 0:00:05]} Bd7 {[%emt 0:03:04]} 25. Bd4 {[%emt 0:00:22]} Bxd4 {[%emt 0:06:40]} 26. Qxd4 {[%emt 0:00:42]} Ra8 {[%emt 0:01:29]} 27. Rfa1 {[%emt 0:02:13]} Rxa7 {[%emt 0:00:07]} 28. Rxa7 {[%emt 0:00:05]} g5 {[%emt 0:01:52]} 29. Ra6 {[%emt 0:19:30]} Bc8 {[%emt 0:02:20]} 30. Rb6 {[%emt 0:03:06]} gxf4 {[%emt 0:00:08]} 31. Nxb5 {[%emt 0:01:34]} Qg5 {[%emt 0:00:11]} 32. Kf1 {[%emt 0:00:22]} h3 {[%emt 0:03:22]} 33. Nxh3 {[%emt 0:00:56]} Bxh3 {[%emt 0:00:08]} 34. gxh3 {[%emt 0:00:03]} f3 {[%emt 0:01:52]} 35. Qg1 {[%emt 0:00:17]} Rxe4 {[%emt 0:01:02]} 36. Rb8+ {[%emt 0:01:07]} Kg7 {[%emt 0:00:13]} 37. Qxg5+ {[%emt 0:00:19]} Nxg5 {[%emt 0:00:02]} 38. Nxd6 {[%emt 0:01:03]} Re2 {[%emt 0:01:06]} 39. Nf5+ {[%emt 0:08:17]} 1/2-1/2

[Event "XIV American Continental-ch 2019"]
[Site "Sao Paulo"]
[Date "2019.07.09"]
[Round "7.24"]
[White "Tomiello, Lucas Costamilan"]
[Black "Bittencourt, Jorge"]
[Result "1/2-1/2"]
[ECO "C91"]
[WhiteElo "2133"]
[BlackElo "2433"]
[Annotator "NA"]
[PlyCount "58"]
[EventDate "2019.07.05"]
[EventType "swiss"]
[EventCountry "BRA"]
[SourceTitle "playchess.com"]
[Source "ChessBase"]
[SourceQuality "1"]
[TimeControl "40/5400+30:1800+30"]

1. e4 e5 {[%emt 0:00:22]} 2. Nf3 {[%emt 0:00:00]} Nc6 {[%emt 0:00:07]} 3. Bb5 {[%emt 0:00:00]} a6 {[%emt 0:00:05]} 4. Ba4 {[%emt 0:00:06]} Nf6 {[%emt 0:00:06]} 5. O-O {[%emt 0:00:20]} Be7 {[%emt 0:00:06]} 6. Re1 {[%emt 0:00:21]} b5 {[%emt 0:00:06]} 7. Bb3 {[%emt 0:00:02]} d6 {[%emt 0:00:08]} 8. c3 {[%emt 0:00:21]} O-O {[%emt 0:00:08]} 9. d4 {[%emt 0:00:40]} Bg4 {[%emt 0:00:44]} 10. d5 {[%emt 0:00:18]} Na5 {[%emt 0:01:26]} 11. Bc2 {[%emt 0:00:18]} Qc8 {[%emt 0:01:23]} 12. h3 {[%emt 0:02:17]} Bd7 {[%emt 0:01:45]} 13. Nbd2 {[%emt 0:01:21]} c6 {[%emt 0:00:17]} 14. dxc6 {[%emt 0:01:43]} Qxc6 {[%emt 0:00:28]} 15. Nf1 {[%emt 0:00:54]} Nc4 {[%emt 0:03:43]} 16. Ng3 {[%emt 0:01:10]} Rfc8 {[%emt 0:14:01]} 17. a4 {[%emt 0:03:37]} Nb6 {[%emt 0:15:59]} 18. a5 {[%emt 0:03:53]} Na4 {[%emt 0:00:07]} 19. Nf5 {[%emt 0:08:49]} Bf8 {[%emt 0:10:21]} 20. Ne3 {[%emt 0:06:14]} g6 {[%emt 0:09:50]} 21. Bb3 {[%emt 0:09:10]} Be6 {[%emt 0:06:31]} 22. Nd5 {[%emt 0:11:33]} Bxd5 {[%emt 0:01:13]} 23. exd5 {[%emt 0:01:33]} Qb7 {[%emt 0:00:18]} 24. Bxa4 {[%emt 0:16:52]} bxa4 {[%emt 0:00:06]} 25. Qxa4 {[%emt 0:00:22]} Qxd5 {[%emt 0:02:12]} 26. Be3 {[%emt 0:03:57]} Qc4 {[%emt 0:04:10]} 27. Nd2 {[%emt 0:05:08]} Qe6 {[%emt 0:07:29]} 28. Rac1 {[%emt 0:06:29]} Rab8 {[%emt 0:00:58]} 29. b4 {[%emt 0:01:22]} Nd7 {[%emt 0:05:42]} 1/2-1/2

[Event "XIV American Continental-ch 2019"]
[Site "Sao Paulo"]
[Date "2019.07.10"]
[Round "8.3"]
[White "Mekhitarian, Krikor Sevag"]
[Black "Gareyev, Timur"]
[Result "1/2-1/2"]
[ECO "A52"]
[WhiteElo "2545"]
[BlackElo "2588"]
[Annotator "ChessBase"]
[PlyCount "72"]
[EventDate "2019.07.05"]
[EventType "swiss"]
[EventCountry "BRA"]
[SourceTitle "playchess.com"]
[Source "ChessBase"]
[SourceQuality "1"]
[TimeControl "40/5400+30:1800+30"]

1. d4 {[%emt 0:00:00]} Nf6 {[%emt 0:04:00]} 2. c4 {[%emt 0:00:00]} e5 {[%emt 0:00:09]} 3. dxe5 {[%emt 0:00:00]} Ng4 {[%emt 0:00:09]} 4. e3 {[%emt 0:04:52]} Nxe5 {[%emt 0:05:33]} 5. Nh3 {[%emt 0:00:05]} d6 {[%emt 0:03:51]} 6. Nf4 {[%emt 0:00:33]} g6 {[%emt 0:00:46]} 7. Nc3 {[%emt 0:01:25]} Bg7 {[%emt 0:00:02]} 8. Be2 {[%emt 0:00:47]} O-O {[%emt 0:00:37]} 9. O-O {[%emt 0:01:40]} a5 {[%emt 0:01:28]} 10. e4 {[%emt 0:23:28]} Na6 {[%emt 0:25:20]} 11. Be3 {[%emt 0:00:35]} Nc5 {[%emt 0:00:49]} 12. Qd2 {[%emt 0:13:29]} Re8 {[%emt 0:28:16]} 13. Rad1 {[%emt 0:01:55]} b6 {[%emt 0:01:05]} 14. Nfd5 {[%emt 0:12:52]} c6 {[%emt 0:01:40]} 15. Nf4 {[%emt 0:01:35]} Ra7 {[%emt 0:03:20]} 16. f3 {[%emt 0:16:26]} Bf8 {[%emt 0:02:02]} 17. Rfe1 {[%emt 0:01:38]} f5 {[%emt 0:00:28]} 18. exf5 {[%emt 0:07:37]} Bxf5 {[%emt 0:00:04]} 19. Bf1 {[%emt 0:01:19]} Rf7 {[%emt 0:00:16]} 20. Kh1 {[%emt 0:03:24]} Qh4 {[%emt 0:01:10]} 21. Qf2 {[%emt 0:02:27]} Qxf2 {[%emt 0:04:47]} 22. Bxf2 {[%emt 0:00:01]} Bd7 {[%emt 0:00:27]} 23. Nd3 {[%emt 0:02:08]} Nexd3 {[%emt 0:04:00]} 24. Bxd3 {[%emt 0:00:07]} Rxe1+ {[%emt 0:00:11]} 25. Bxe1 {[%emt 0:00:04]} Nxd3 {[%emt 0:01:14]} 26. Rxd3 {[%emt 0:00:01]} Bf5 {[%emt 0:05:48]} 27. Rd2 {[%emt 0:01:08]} g5 {[%emt 0:02:11]} 28. Bg3 {[%emt 0:01:11]} Rf6 {[%emt 0:01:35]} 29. Kg1 {[%emt 0:02:29]} Re6 {[%emt 0:01:50]} 30. b3 {[%emt 0:00:25]} g4 {[%emt 0:00:19]} 31. Ne4 {[%emt 0:00:51]} gxf3 {[%emt 0:00:37]} 32. gxf3 {[%emt 0:00:05]} Bxe4 {[%emt 0:01:03]} 33. fxe4 {[%emt 0:00:02]} Kf7 {[%emt 0:00:19]} 34. Kf2 {[%emt 0:01:02]} Rf6+ {[%emt 0:00:09]} 35. Ke2 {[%emt 0:00:08]} Ke6 {[%emt 0:00:38]} 36. Rd3 {[%emt 0:00:22]} Be7 {[%emt 0:00:45]} 1/2-1/2